fUST/lending_fUST_20240925
["ID","MTS","AMOUNT","RATE_DAILY","PERIOD"]
[339096636,1727242240704,-500.0,0.00016438,2]
[339096637,1727242240713,-500.0,0.00016438,2]
[339096638,1727242240723,-523.08,0.00016438,2]
[339096639,1727242240732,-500.0,0.00016438,2]
[339096640,1727242240744,-500.0,0.00016438,2]
[339096641,1727242240754,-500.0,0.00016438,2]
[339096642,1727242240763,-555.02831218,0.00016438,2]
[339096643,1727242240772,-500.0,0.00016438,2]
[339096644,1727242240781,-500.0,0.00016438,2]
[339096645,1727242240791,-358.17712727,0.00016438,2]
[339096646,1727242240800,-500.32855017,0.00016438,2]
[339096647,1727242240809,-593.43606752,0.00016438,2]
[339096648,1727242240820,-500.0,0.00016438,2]
[339096649,1727242240829,-500.0,0.00016438,2]
[339096650,1727242240839,-500.0,0.00016438,2]
[339096651,1727242240848,-782.94,0.00016438,2]
[339096652,1727242240857,-529.29,0.00016438,2]
[339096653,1727242240867,-500.0,0.00016438,2]
[339096654,1727242240876,-500.0,0.00016438,2]
[339096655,1727242240885,-590.49,0.00016438,2]
[339096656,1727242240894,-839.57,0.00016438,2]
[339096657,1727242240903,-500.0,0.00016438,2]
[339096658,1727242240912,-500.0,0.00016438,2]
[339096659,1727242240921,-500.0,0.00016438,2]
[339096660,1727242240931,-500.0,0.00016438,2]
[339096661,1727242240940,-500.0,0.00016438,2]
[339096662,1727242240949,-500.0,0.00016438,2]
[339096663,1727242240958,-500.0,0.00016438,2]
[339096664,1727242240968,-162.94737374,0.00016438,2]
[339096665,1727242240977,-500.0,0.00016438,2]
[339096666,1727242240988,-500.0,0.00016438,2]
[339096667,1727242240997,-415.43,0.00016438,2]
[339096668,1727242241006,-500.0,0.00016438,2]
[339096669,1727242241016,-500.0,0.00016438,2]
[339096670,1727242241025,-511.05424073,0.00016438,2]
[339096671,1727242241035,-508.49644787,0.00016438,2]
[339096672,1727242241045,-500.0,0.00016438,2]
[339096673,1727242241056,-500.0,0.00016438,2]
[339096674,1727242241065,-515.56,0.00016438,2]
[339096675,1727242241075,-500.0,0.00016438,2]
[339096676,1727242241084,-5018.04,0.00016438,2]
[339096677,1727242241094,-500.0,0.00016438,2]
[339096678,1727242241103,-500.0,0.00016438,5]
[339096679,1727242241112,-500.0,0.00016438,2]
[339096680,1727242241122,-500.0,0.00016438,2]
[339096681,1727242241132,-500.0,0.00016438,2]
[339096682,1727242241141,-500.0,0.00016438,2]
[339096683,1727242241151,-500.0,0.00016438,2]
[339096684,1727242241161,-500.0,0.00016438,2]
[339096685,1727242241171,-500.0,0.00016438,2]
[339096686,1727242241181,-500.0,0.00016438,2]
[339096687,1727242241193,-500.0,0.00016438,2]
[339096688,1727242241203,-500.0,0.00016438,2]
[339096689,1727242241213,-500.0,0.00016438,2]
[339096690,1727242241223,-500.0,0.00016438,2]
[339096691,1727242241234,-500.0,0.00016438,2]
[339096692,1727242241244,-500.0,0.00016438,2]
[339096693,1727242241254,-500.0,0.00016438,2]
[339096694,1727242241264,-500.0,0.00016438,2]
[339096695,1727242241273,-579.45331601,0.00016438,2]
[339096696,1727242241283,-500.0,0.00016438,2]
[339096697,1727242241293,-500.0,0.00016438,2]
[339096698,1727242241303,-500.0,0.00016438,2]
[339096699,1727242241312,-1068.67,0.00016438,2]
[339096700,1727242241322,-500.0,0.00016438,2]
[339096701,1727242241332,-634.59458152,0.00016438,2]
[339096702,1727242241342,-623.83,0.00016438,2]
[339096703,1727242241352,-500.0,0.00016438,2]
[339096704,1727242241362,-500.0,0.00016438,2]
[339096705,1727242241372,-500.0,0.00016438,2]
[339096706,1727242241382,-500.0,0.00016438,2]
[339096707,1727242241392,-581.97096738,0.00016438,2]
[339096708,1727242241402,-500.0,0.00016438,2]
[339096709,1727242241412,-500.0,0.00016438,2]
[339096710,1727242241422,-507.96322002,0.00016438,2]
[339096711,1727242241432,-504.22083228,0.00016438,2]
[339096712,1727242241442,-500.0,0.00016438,2]
[339096713,1727242241452,-500.0,0.00016438,2]
[339096714,1727242241462,-500.0,0.00016438,2]
[339096715,1727242241472,-57.80939847,0.00016438,2]
[339096716,1727242241768,-442.19060153,0.00016438,2]
[339096717,1727242241778,-500.0,0.00016438,2]
[339096718,1727242241789,-500.0,0.00016438,2]
[339096719,1727242241798,-500.0,0.00016438,2]
[339096720,1727242241809,-500.0,0.00016438,2]
[339096721,1727242241818,-500.0,0.00016438,2]
[339096722,1727242241828,-586.89712939,0.00016438,2]
[339096723,1727242241838,-500.0,0.00016438,2]
[339096724,1727242241848,-500.0,0.00016438,2]
[339096725,1727242241857,-500.0,0.00016438,2]
[339096726,1727242241867,-500.0,0.00016438,2]
[339096727,1727242241876,-647.06,0.00016438,2]
[339096728,1727242241887,-500.0,0.00016438,2]
[339096729,1727242241898,-500.0,0.00016438,2]
[339096730,1727242241910,-500.0,0.00016438,2]
[339096731,1727242241921,-500.0,0.00016438,2]
[339096732,1727242241933,-776.77,0.00016438,2]
[339096733,1727242241943,-500.0,0.00016438,2]
[339096734,1727242241953,-500.0,0.00016438,2]
[339096735,1727242241964,-500.0,0.00016438,2]
[339096736,1727242241974,-500.0,0.00016438,2]
[339096737,1727242241984,-500.0,0.00016438,2]
[339096738,1727242241994,-500.0,0.00016438,2]
[339096739,1727242242005,-500.0,0.00016438,2]
[339096740,1727242242016,-608.04516758,0.00016438,2]
[339096741,1727242242025,-500.0,0.00016438,2]
[339096742,1727242242035,-507.82679288,0.00016438,2]
[339096743,1727242242045,-1000.0,0.00016438,2]
[339096744,1727242242055,-500.0,0.00016438,2]
[339096745,1727242242065,-500.0,0.00016438,2]
[339096746,1727242242075,-692.69,0.00016438,2]
[339096747,1727242242085,-500.0,0.00016438,2]
[339096748,1727242242095,-500.0,0.00016438,2]
[339096749,1727242242105,-500.0,0.00016438,2]
[339096750,1727242242115,-501.71733928,0.00016438,2]
[339096751,1727242242125,-511.32525765,0.00016438,2]
[339096752,1727242242135,-500.0,0.00016438,2]
[339096753,1727242242144,-500.0,0.00016438,2]
[339096754,1727242242154,-500.0,0.00016438,2]
[339096755,1727242242164,-526.05436553,0.00016438,2]
[339096756,1727242242174,-342.87385464,0.00016438,2]
[339096757,1727242242184,-501.68709895,0.00016438,2]
[339096758,1727242242196,-500.0,0.00016438,2]
[339096759,1727242242206,-500.0,0.00016438,2]
[339096760,1727242242216,-500.0,0.00016438,2]
[339096761,1727242242226,-500.0,0.00016438,2]
[339096762,1727242242237,-500.0,0.00016438,2]
[339096763,1727242242246,-500.0,0.00016438,2]
[339096764,1727242242255,-506.41083005,0.00016438,2]
[339096765,1727242242267,-500.0,0.00016438,2]
[339096766,1727242242276,-500.0,0.00016438,2]
[339096767,1727242242286,-500.0,0.00016438,2]
[339096768,1727242242296,-500.0,0.00016438,2]
[339096769,1727242242307,-500.0,0.00016438,2]
[339096770,1727242242318,-500.0,0.00016438,2]
[339096771,1727242242328,-500.0,0.00016438,2]
[339096772,1727242242338,-501.71030824,0.00016438,2]
[339096773,1727242242350,-1055.55,0.00016438,2]
[339096774,1727242242362,-507.08230225,0.00016438,2]
[339096775,1727242242371,-500.0,0.00016438,2]
[339096776,1727242242381,-500.0,0.00016438,2]
[339096777,1727242242391,-500.0,0.00016438,2]
[339096778,1727242242401,-500.0,0.00016438,2]
[339096779,1727242242412,-507.98221229,0.00016438,2]
[339096780,1727242242422,-500.0,0.00016438,2]
[339096781,1727242242432,-500.0,0.00016438,2]
[339096782,1727242242442,-500.0,0.00016438,2]
[339096783,1727242242452,-500.0,0.00016438,2]
[339096784,1727242242462,-2378.5,0.00016438,2]
[339096785,1727242242472,-2378.5,0.00016438,2]
[339096786,1727242242482,-2378.5,0.00016438,2]
[339096787,1727242242492,-2378.5,0.00016438,2]
[339096788,1727242242502,-2378.5,0.00016438,2]
[339096789,1727242242512,-2378.5,0.00016438,2]
[339096790,1727242242522,-2378.5,0.00016438,2]
[339096791,1727242242532,-500.0,0.00016438,2]
[339096792,1727242242542,-2378.5,0.00016438,2]
[339096793,1727242242551,-2378.5,0.00016438,2]
[339096794,1727242242560,-2378.5,0.00016438,2]
[339096795,1727242242570,-2378.5,0.00016438,2]
[339096796,1727242242579,-2378.5,0.00016438,2]
[339096797,1727242242589,-2378.5,0.00016438,2]
[339096798,1727242242598,-2378.5,0.00016438,2]
[339096799,1727242242608,-2378.5,0.00016438,2]
[339096800,1727242242618,-2378.5,0.00016438,2]
[339096801,1727242242628,-2378.5,0.00016438,2]
[339096802,1727242242637,-2378.5,0.00016438,2]
[339096803,1727242242647,-2378.5,0.00016438,2]
[339096804,1727242242656,-2378.5,0.00016438,2]
[339096805,1727242242666,-2378.5,0.00016438,2]
[339096808,1727242242676,-2378.5,0.00016438,2]
[339096810,1727242242685,-2378.5,0.00016438,2]
[339096813,1727242242695,-2378.6473725,0.00016438,2]
[339096815,1727242242704,-500.0,0.00016438,2]
[339096817,1727242242714,-500.0,0.00016438,2]
[339096818,1727242242724,-520.41570554,0.00016438,2]
[339096819,1727242242734,-1014.21,0.00016438,2]
[339096820,1727242242743,-743.45,0.00016438,2]
[339096821,1727242242753,-500.0,0.00016438,2]
[339096822,1727242242763,-500.0,0.00016438,2]
[339096823,1727242242773,-539.97942469,0.00016438,2]
[339096824,1727242242783,-500.0,0.00016438,2]
[339096825,1727242242792,-501.58221497,0.00016438,2]
[339096826,1727242242802,-511.06119485,0.00016438,2]
[339096827,1727242242812,-500.0,0.00016438,2]
[339096828,1727242242822,-500.0,0.00016438,2]
[339096829,1727242242832,-500.0,0.00016438,2]
[339096830,1727242242842,-500.0,0.00016438,2]
[339096831,1727242242852,-500.0,0.00016438,2]
[339096832,1727242242861,-506.9452697,0.00016438,2]
[339096833,1727242242871,-500.0,0.00016438,2]
[339096834,1727242242881,-756.86,0.00016438,2]
[339096835,1727242242890,-500.0,0.00016438,2]
[339096836,1727242242900,-512.25854286,0.00016438,2]
[339096837,1727242242910,-4230.65,0.00016438,2]
[339096838,1727242242920,-608.88,0.00016438,2]
[339096839,1727242242929,-401.55812849,0.00016438,2]
[339096840,1727242242939,-500.0,0.00016438,2]
[339096841,1727242242950,-500.0,0.00016438,2]
[339096842,1727242242961,-500.0,0.00016438,2]
[339096843,1727242242972,-500.0,0.00016438,2]
[339096844,1727242242982,-500.0,0.00016438,2]
[339096845,1727242242992,-500.0,0.00016438,2]
[339096846,1727242243002,-500.0,0.00016438,2]
[339096847,1727242243012,-500.0,0.00016438,2]
[339096848,1727242243022,-500.0,0.00016438,2]
[339096849,1727242243032,-558.74,0.00016438,2]
[339096850,1727242243042,-500.0,0.00016438,2]
[339096851,1727242243052,-204.47624594,0.00016438,2]
[339096852,1727242243062,-500.0,0.00016438,2]
[339096853,1727242243072,-500.0,0.00016438,2]
[339096854,1727242243082,-500.0,0.00016438,2]
[339096856,1727242243092,-592.57,0.00016438,2]
[339096858,1727242243101,-500.0,0.00016438,2]
[339096860,1727242243111,-500.0,0.00016438,2]
[339096861,1727242243120,-501.97500434,0.00016438,2]
[339096862,1727242243130,-500.0,0.00016438,2]
[339096863,1727242243140,-500.0,0.00016438,2]
[339096864,1727242243149,-500.0,0.00016438,2]
[339096865,1727242243160,-525.21,0.00016438,2]
[339096866,1727242243169,-500.0,0.00016438,2]
[339096867,1727242243179,-500.0,0.00016438,2]
[339096868,1727242243191,-1213.14,0.00016438,2]
[339096869,1727242243201,-502.21501755,0.00016438,2]
[339096870,1727242243211,-500.0,0.00016438,2]
[339096871,1727242243221,-753.56,0.00016438,2]
[339096872,1727242243231,-500.85387924,0.00016438,2]
[339096873,1727242243241,-600.68042802,0.00016438,2]
[339096874,1727242243251,-500.0,0.00016438,2]
[339096875,1727242243260,-509.30670106,0.00016438,2]
[339096876,1727242243502,-500.0,0.00016438,2]
[339096877,1727242243517,-500.0,0.00016438,2]
[339096878,1727242243527,-502.06778918,0.00016438,2]
[339096879,1727242243536,-514.51284027,0.00016438,2]
[339096880,1727242243546,-500.0,0.00016438,2]
[339096881,1727242243556,-464.19539959,0.00016438,2]
[339096882,1727242243566,-500.0,0.00016438,2]
[339096883,1727242243576,-500.0,0.00016438,2]
[339096884,1727242243586,-509.40183838,0.00016438,2]
[339096885,1727242243595,-510.5055585,0.00016438,2]
[339096886,1727242243604,-623.38,0.00016438,2]
[339096887,1727242243614,-500.0,0.00016438,2]
[339096888,1727242243623,-435.29062532,0.00016438,2]
[339096889,1727242243632,-500.0,0.00016438,2]
[339096890,1727242243642,-500.0,0.00016438,2]
[339096891,1727242243651,-500.0,0.00016438,2]
[339096892,1727242243660,-542.96,0.00016438,2]
[339096893,1727242243670,-500.0,0.00016438,2]
[339096894,1727242243679,-632.35,0.00016438,2]
[339096895,1727242243688,-500.0,0.00016438,2]
[339096896,1727242243698,-515.16581867,0.00016438,2]
[339096897,1727242243708,-503.28259536,0.00016438,2]
[339096898,1727242243719,-500.0,0.00016438,2]
[339096899,1727242243729,-500.0,0.00016438,2]
[339096900,1727242243741,-500.0,0.00016438,2]
[339096901,1727242243752,-500.0,0.00016438,2]
[339096902,1727242243762,-500.0,0.00016438,2]
[339096903,1727242243771,-500.0,0.00016438,2]
[339096904,1727242243780,-500.0,0.00016438,2]
[339096905,1727242243789,-506.90914902,0.00016438,2]
[339096906,1727242243799,-500.0,0.00016438,2]
[339096907,1727242243808,-500.0,0.00016438,2]
[339096908,1727242243817,-500.0,0.00016438,2]
[339096909,1727242243826,-500.0,0.00016438,2]
[339096910,1727242243836,-500.0,0.00016438,2]
[339096911,1727242243846,-228.041103,0.00016438,2]
[339096912,1727242243858,-505.04432616,0.00016438,2]
[339096913,1727242243867,-500.0,0.00016438,2]
[339096914,1727242243876,-500.0,0.00016438,2]
[339096915,1727242243885,-563.44,0.00016438,2]
[339096916,1727242243894,-500.0,0.00016438,2]
[339096917,1727242243903,-500.0,0.00016438,2]
[339096918,1727242243912,-500.0,0.00016438,2]
[339096919,1727242243921,-500.0,0.00016438,2]
[339096920,1727242243931,-986.37,0.00016438,2]
[339096921,1727242243940,-500.0,0.00016438,2]
[339096922,1727242243949,-501.43794384,0.00016438,2]
[339096923,1727242243959,-515.70041427,0.00016438,2]
[339096924,1727242243968,-576.55182439,0.00016438,2]
[339096925,1727242243977,-500.0,0.00016438,2]
[339096926,1727242243991,-500.0,0.00016438,2]
[339096927,1727242244002,-443.75768666,0.00016438,2]
[339096928,1727242244012,-722.55,0.00016438,2]
[339096929,1727242244021,-500.0,0.00016438,2]
[339096930,1727242244030,-500.0,0.00016438,2]
[339096931,1727242244041,-1031.06,0.00016438,2]
[339096932,1727242244050,-500.0,0.00016438,2]
[339096933,1727242244058,-500.0,0.00016438,2]
[339096934,1727242244068,-500.0,0.00016438,2]
[339096935,1727242244077,-500.0,0.00016438,2]
[339096936,1727242244087,-500.0,0.00016438,2]
[339096937,1727242244096,-604.00328427,0.00016438,2]
[339096938,1727242244105,-500.0,0.00016438,2]
[339096939,1727242244114,-500.0,0.00016438,2]
[339096940,1727242244123,-2020.49,0.00016438,2]
[339096941,1727242244133,-500.0,0.00016438,2]
[339096942,1727242244142,-500.0,0.00016438,2]
[339096943,1727242244151,-500.0,0.00016438,2]
[339096944,1727242244160,-558.53,0.00016438,2]
[339096945,1727242244170,-500.0,0.00016438,2]
[339096946,1727242244179,-535.99,0.00016438,2]
[339096947,1727242244189,-500.0,0.00016438,2]
[339096948,1727242244201,-500.0,0.00016438,2]
[339096949,1727242244210,-500.0,0.00016438,2]
[339096950,1727242244219,-502.10055461,0.00016438,2]
[339096951,1727242244229,-500.0,0.00016438,2]
[339096952,1727242244244,-500.0,0.00016438,2]
[339096953,1727242244254,-500.0,0.00016438,2]
[339096954,1727242244263,-500.0,0.00016438,2]
[339096955,1727242244273,-520.46,0.00016438,2]
[339096956,1727242244283,-500.0,0.00016438,2]
[339096957,1727242244292,-601.67,0.00016438,2]
[339096958,1727242244302,-500.0,0.00016438,2]
[339096959,1727242244311,-500.0,0.00016438,2]
[339096960,1727242244320,-500.0,0.00016438,2]
[339096961,1727242244331,-500.0,0.00016438,2]
[339096962,1727242244343,-308.39339211,0.00016438,2]
[339096963,1727242244353,-500.0,0.00016438,2]
[339096964,1727242244365,-1757.91,0.00016438,2]
[339096965,1727242244374,-504.28512034,0.00016438,2]
[339096966,1727242244384,-500.0,0.00016438,2]
[339096967,1727242244394,-766.23,0.00016438,2]
[339096968,1727242244405,-500.0,0.00016438,2]
[339096969,1727242244417,-500.0,0.00016438,2]
[339096970,1727242244427,-500.0,0.00016438,2]
[339096971,1727242244437,-504.39,0.00016438,2]
[339096972,1727242244447,-500.0,0.00016438,2]
[339096973,1727242244457,-500.0,0.00016438,2]
[339096974,1727242244467,-500.0,0.00016438,2]
[339096975,1727242244477,-861.19,0.00016438,2]
[339096976,1727242244489,-500.0,0.00016438,2]
[339096977,1727242244498,-500.0,0.00016438,2]
[339096978,1727242244508,-500.0,0.00016438,2]
[339096979,1727242244518,-500.0,0.00016438,2]
[339096980,1727242244528,-500.0,0.00016438,2]
[339096981,1727242244539,-700.31,0.00016438,2]
[339096982,1727242244550,-583.48,0.00016438,2]
[339096983,1727242244561,-500.0,0.00016438,2]
[339096984,1727242244571,-500.0,0.00016438,2]
[339096985,1727242244581,-500.0,0.00016438,2]
[339096986,1727242244591,-1034.58,0.00016438,2]
[339096987,1727242244600,-500.0,0.00016438,2]
[339096988,1727242244609,-500.0,0.00016438,2]
[339096989,1727242244619,-500.0,0.00016438,2]
[339096990,1727242244628,-500.0,0.00016438,2]
[339096991,1727242244637,-500.0,0.00016438,2]
[339096992,1727242244647,-500.0,0.00016438,2]
[339096993,1727242244656,-500.0,0.00016438,2]
[339096994,1727242244666,-500.0,0.00016438,2]
[339096995,1727242244675,-568.24313624,0.00016438,2]
[339096996,1727242244684,-749.38,0.00016438,2]
[339096997,1727242244694,-500.0,0.00016438,2]
[339096998,1727242244703,-518.96,0.00016438,2]
[339096999,1727242244715,-30154.74,0.00016438,2]
[339097000,1727242244723,-593.72,0.00016438,2]
[339097001,1727242244733,-1145.94,0.00016438,2]
[339097002,1727242244743,-500.0,0.00016438,2]
[339097003,1727242244753,-500.0,0.00016438,2]
[339097004,1727242244764,-500.0,0.00016438,2]
[339097005,1727242244774,-557.87,0.00016438,2]
[339097006,1727242244787,-500.0,0.00016438,2]
[339097007,1727242244798,-500.0,0.00016438,2]
[339097008,1727242244808,-500.0,0.00016438,2]
[339097009,1727242244819,-500.0,0.00016438,2]
[339097010,1727242244829,-500.0,0.00016438,2]
[339097011,1727242244841,-4404.33,0.00016438,2]
[339097012,1727242244852,-375.0,0.00016438,2]
[339097013,1727242244863,-500.0,0.00016438,2]
[339097014,1727242244873,-500.0,0.00016438,2]
[339097015,1727242244882,-500.0,0.00016438,2]
[339097016,1727242244892,-196.740456,0.00016462,2]
[339097017,1727242244903,-500.0,0.00016473,2]
[339097018,1727242244914,-500.0,0.00016473,2]
[339097019,1727242244927,-206.8210894,0.00016473,2]
[339097020,1727242244937,-500.0,0.00016473,2]
[339097021,1727242244948,-500.0,0.00016473,2]
[339097022,1727242244958,-500.0,0.00016473,2]
[339097023,1727242244968,-500.0,0.00016473,2]
[339097024,1727242244977,-500.0,0.00016473,2]
[339097025,1727242244987,-305.03591295,0.00016473,2]
[339097026,1727242244997,-500.0,0.00016473,2]
[339097027,1727242245006,-500.0,0.00016473,2]
[339097028,1727242245016,-500.0,0.00016473,2]
[339097029,1727242245025,-500.0,0.00016473,2]
[339097030,1727242245036,-150.112233,0.000165,2]
[339097031,1727242245046,-620.02379946,0.00016575,2]
[339097032,1727242245055,-150.112233,0.000166,2]
[339097033,1727242245065,-150.112233,0.000166,2]
[339097034,1727242245074,-150.112233,0.000166,2]
[339097035,1727242245083,-156.072648,0.000166,2]
[339097036,1727242245092,-151.0,0.0001662,2]
[339097037,1727242245102,-150.112233,0.000167,2]
[339097038,1727242245111,-150.112233,0.000167,2]
[339097039,1727242245120,-150.112233,0.000167,2]
[339097040,1727242245130,-151.0,0.00016712,2]
[339097041,1727242245139,-232.330211,0.00016712,2]
[339097042,1727242245149,-329.77422125,0.00016712,2]
[339097043,1727242245158,-500.0,0.00016712,2]
[339097044,1727242245168,-500.0,0.00016712,2]
[339097045,1727242245178,-500.0,0.00016712,2]
[339097046,1727242245188,-500.0,0.00016712,2]
[339097047,1727242245201,-520.2032166,0.00016712,2]
[339097048,1727242245211,-500.0,0.00016712,2]
[339097049,1727242245220,-500.0,0.00016712,2]
[339097050,1727242245231,-1495.39,0.00016712,2]
[339097051,1727242245241,-173.08365212,0.00016712,2]
[339097052,1727242245251,-500.0,0.00016712,2]
[339097053,1727242245262,-1390.19,0.00016712,2]
[339097054,1727242245272,-638.87,0.00016712,2]
[339097055,1727242245281,-500.0,0.00016712,2]
[339097056,1727242245291,-500.0,0.00016712,2]
[339097057,1727242245301,-623.02,0.00016712,2]
[339097058,1727242245310,-500.0,0.00016712,2]
[339097059,1727242245320,-811.04,0.00016712,2]
[339097060,1727242245330,-500.0,0.00016712,2]
[339097061,1727242245340,-500.0,0.00016712,2]
[339097062,1727242245349,-500.0,0.00016712,2]
[339097063,1727242245363,-500.0,0.00016712,2]
[339097064,1727242245373,-514.29473836,0.00016712,2]
[339097065,1727242245382,-500.0,0.00016712,2]
[339097066,1727242245392,-500.0,0.00016712,2]
[339097067,1727242245401,-500.0,0.00016712,2]
[339097068,1727242245411,-500.0,0.00016712,2]
[339097069,1727242245421,-935.87,0.00016712,2]
[339097070,1727242245430,-627.71,0.00016712,2]
[339097072,1727242245440,-500.0,0.00016712,2]
[339097074,1727242245450,-894.89,0.00016712,2]
[339097075,1727242245459,-566.2,0.00016712,2]
[339097076,1727242245469,-500.0,0.00016712,2]
[339097077,1727242245479,-734.22,0.00016712,2]
[339097078,1727242245489,-500.0,0.00016712,2]
[339097079,1727242245499,-500.0,0.00016712,2]
[339097080,1727242245508,-500.0,0.00016712,2]
[339097081,1727242245518,-500.0,0.00016712,2]
[339097082,1727242245527,-500.0,0.00016712,2]
[339097083,1727242245537,-500.0,0.00016712,2]
[339097084,1727242245547,-500.0,0.00016712,2]
[339097085,1727242245556,-500.0,0.00016712,2]
[339097086,1727242245565,-1512.25,0.00016712,2]
[339097087,1727242245575,-500.0,0.00016712,2]
[339097088,1727242245585,-378.78515875,0.00016712,2]
[339097089,1727242245594,-837.62,0.00016712,2]
[339097090,1727242245604,-500.0,0.00016712,2]
[339097091,1727242245613,-845.21,0.00016712,2]
[339097092,1727242245622,-500.0,0.00016712,2]
[339097093,1727242245632,-246.76,0.00016712,2]
[339097094,1727242245642,-500.0,0.00016712,2]
[339097095,1727242245652,-588.39516228,0.00016712,2]
[339097096,1727242245661,-500.0,0.00016712,2]
[339097097,1727242245671,-500.0,0.00016712,2]
[339097098,1727242245681,-502.65638944,0.00016712,2]
[339097099,1727242245690,-500.0,0.00016712,2]
[339097100,1727242245702,-500.0,0.00016712,2]
[339097101,1727242245713,-500.0,0.00016712,2]
[339097102,1727242245723,-500.0,0.00016712,2]
[339097103,1727242245733,-719.92,0.00016712,2]
[339097104,1727242245745,-801.84,0.00016712,2]
[339097105,1727242245754,-500.0,0.00016712,2]
[339097106,1727242245764,-500.0,0.00016712,2]
[339097107,1727242245774,-506.46,0.00016712,2]
[339097108,1727242245784,-500.0,0.00016712,2]
[339097109,1727242245793,-500.0,0.00016712,2]
[339097110,1727242245803,-500.0,0.00016712,2]
[339097111,1727242245813,-500.0,0.00016712,2]
[339097112,1727242245822,-500.0,0.00016712,2]
[339097113,1727242245833,-500.0,0.00016712,2]
[339097114,1727242245843,-500.0,0.00016712,2]
[339097115,1727242245852,-500.0,0.00016712,2]
[339097120,1727242245913,-559.17,0.00016712,2]
[339097122,1727242245922,-894.26,0.00016712,2]
[339097124,1727242245931,-500.0,0.00016712,2]
[339097126,1727242245940,-500.0,0.00016712,2]
[339097128,1727242245950,-500.0,0.00016712,2]
[339097130,1727242245963,-500.0,0.00016712,2]
[339097132,1727242245973,-500.0,0.00016712,2]
[339097134,1727242245982,-526.77604805,0.00016712,2]
[339097137,1727242245994,-500.0,0.00016712,2]
[339097138,1727242246003,-500.0,0.00016712,2]
[339097140,1727242246012,-514.64,0.00016712,2]
[339097142,1727242246021,-500.0,0.00016712,2]
[339097144,1727242246031,-955.81,0.00016712,2]
[339097147,1727242246041,-500.0,0.00016712,2]
[339097149,1727242246052,-500.0,0.00016712,2]
[339097151,1727242246061,-500.0,0.00016712,2]
[339097153,1727242246070,-775.81,0.00016712,2]
[339097155,1727242246079,-500.0,0.00016712,2]
[339097157,1727242246089,-500.0,0.00016712,2]
[339097158,1727242246098,-506.52175616,0.00016712,2]
[339097160,1727242246108,-399.98409957,0.00016712,2]
[339097162,1727242246119,-644.59,0.00016712,2]
[339097164,1727242246128,-611.95128705,0.00016712,2]
[339097166,1727242246139,-500.0,0.00016712,2]
[339097168,1727242246149,-500.0,0.00016712,2]
[339097170,1727242246158,-500.0,0.00016712,2]
[339097171,1727242246168,-500.0,0.00016712,2]
[339097172,1727242246178,-500.0,0.00016712,2]
[339097173,1727242246189,-500.0,0.00016712,2]
[339097174,1727242246201,-500.0,0.00016712,2]
[339097175,1727242246211,-500.0,0.00016712,2]
[339097176,1727242246222,-500.0,0.00016712,2]